fUSD/lending_fUSD_20240615
["ID","MTS","AMOUNT","RATE_DAILY","PERIOD"]
[329600597,1718494258714,-179.975035,0.00015,2]
[329600598,1718494258740,-179.975035,0.00015,2]
[329600599,1718494258752,-179.975035,0.00015,2]
[329600600,1718494258776,-179.975035,0.00015,2]
[329600601,1718494258788,-152.96466,0.00015,2]
[329600602,1718494258801,-179.975035,0.00015,2]
[329600603,1718494258811,-151.0,0.00015,2]
[329600604,1718494258827,-151.0,0.00015,2]
[329600605,1718494258849,-151.0,0.00015,2]
[329600606,1718494258861,-151.0,0.00015,2]
[329600607,1718494258873,-151.0,0.00015,2]
[329600608,1718494258885,-151.0,0.00015,2]
[329600609,1718494258897,-151.0,0.00015,2]
[329600610,1718494258908,-151.0,0.00015,2]
[329600611,1718494258919,-151.0,0.00015,2]
[329600612,1718494258930,-151.0,0.00015,2]
[329600613,1718494258940,-151.0,0.00015,2]
[329600614,1718494258956,-151.0,0.00015,2]
[329600615,1718494258973,-151.0,0.00015,2]
[329600616,1718494258984,-151.0,0.00015,2]
[329600617,1718494259003,-151.0,0.00015,2]
[329600618,1718494259018,-415.7641,0.00015,2]
[329600619,1718494259030,-151.0,0.00015,2]
[329600620,1718494259080,-415.7641,0.00015,2]
[329600621,1718494259104,-301.254228,0.00015,2]
[329600622,1718494259115,-415.7641,0.00015,2]
[329600623,1718494259127,-415.7641,0.00015,2]
[329600624,1718494259139,-415.7641,0.00015,2]
[329600625,1718494259180,-415.7641,0.00015,2]
[329600626,1718494259194,-415.7641,0.00015,2]
[329600627,1718494259206,-415.7641,0.00015,2]
[329600628,1718494259219,-221.245418,0.00015,2]
[329600629,1718494259230,-221.245418,0.00015,2]
[329600630,1718494259241,-221.245418,0.00015,2]
[329600631,1718494259295,-154.025365,0.00015,2]
[329600632,1718494259307,-221.245418,0.00015,2]
[329600633,1718494259325,-151.0,0.00015,2]
[329600634,1718494259337,-151.0,0.00015,2]
[329600635,1718494259348,-151.0,0.00015,2]
[329600636,1718494259359,-151.0,0.00015,2]
[329600637,1718494259370,-151.0,0.00015,2]
[329600638,1718494259382,-151.0,0.00015,2]
[329600639,1718494259394,-151.0,0.00015,2]
[329600640,1718494259416,-151.0,0.00015,2]
[329600641,1718494259447,-151.0,0.00015,2]
[329600642,1718494259458,-221.245418,0.00015,2]
[329600643,1718494259469,-151.0,0.00015,2]
[329600644,1718494259480,-221.245418,0.00015,2]
[329600645,1718494259492,-151.0,0.00015,2]
[329600646,1718494259512,-221.245418,0.00015,2]
[329600647,1718494259523,-191.67005,0.00015,2]
[329600648,1718494259536,-221.245418,0.00015,2]
[329600649,1718494259556,-151.0,0.00015,2]
[329600650,1718494259611,-258.224213,0.00015,2]
[329600651,1718494259631,-151.0,0.00015,2]
[329600652,1718494259642,-151.0,0.00015,2]
[329600653,1718494259663,-151.0,0.00015,2]
[329600654,1718494259675,-151.0,0.00015,2]
[329600655,1718494259693,-151.0,0.00015,2]
[329600656,1718494259712,-151.0,0.00015,2]
[329600657,1718494259753,-151.0,0.00015,2]
[329600658,1718494259767,-222.102272,0.00015,2]
[329600659,1718494259779,-151.0,0.00015,2]
[329600660,1718494259805,-222.102272,0.00015,2]
[329600661,1718494259819,-151.0,0.00015,2]
[329600662,1718494259853,-222.102272,0.00015,2]
[329600663,1718494259876,-151.0,0.00015,2]
[329600664,1718494259888,-154.157289,0.00015,2]
[329600665,1718494259914,-222.102272,0.00015,2]
[329600666,1718494259945,-167.587632,0.00015,2]
[329600667,1718494259962,-154.157289,0.00015,2]
[329600668,1718494259993,-156.400157,0.00015,2]
[329600669,1718494260033,-154.157289,0.00015,2]
[329600670,1718494260052,-156.400157,0.00015,2]
[329600671,1718494260109,-154.157289,0.00015,2]
[329600672,1718494260137,-156.400157,0.00015,2]
[329600673,1718494260186,-156.400157,0.00015,2]
[329600674,1718494260221,-222.102272,0.00015,2]
[329600675,1718494260245,-154.157289,0.00015,2]
[329600676,1718494260256,-222.102272,0.00015,2]
[329600677,1718494260270,-154.157289,0.00015,2]
[329600678,1718494260287,-222.102272,0.00015,2]
[329600679,1718494260305,-154.157289,0.00015,2]
[329600680,1718494260317,-222.102272,0.00015,2]
[329600681,1718494260337,-154.157289,0.00015,2]
[329600682,1718494260348,-156.400157,0.00015,2]
[329600683,1718494260359,-156.400157,0.00015,2]
[329600684,1718494260392,-156.400157,0.00015,2]
[329600685,1718494260420,-156.400157,0.00015,2]
[329600686,1718494260435,-151.0,0.00015,2]
[329600687,1718494260457,-151.0,0.00015,2]
[329600688,1718494260468,-151.0,0.00015,2]
[329600689,1718494260498,-151.0,0.00015,2]
[329600690,1718494260510,-151.0,0.00015,2]
[329600691,1718494260525,-151.0,0.00015,2]
[329600692,1718494260536,-151.0,0.00015,2]
[329600693,1718494260547,-151.0,0.00015,2]
[329600694,1718494260575,-185.923544,0.00015,2]
[329600695,1718494260598,-185.923544,0.00015,2]
[329600696,1718494260622,-185.923544,0.00015,2]
[329600697,1718494260634,-185.923544,0.00015,2]
[329600698,1718494260684,-185.923544,0.00015,2]
[329600699,1718494260695,-185.923544,0.00015,2]
[329600700,1718494260707,-185.923544,0.00015,2]
[329600701,1718494260718,-185.923544,0.00015,2]
[329600702,1718494260729,-164.061106,0.00015,2]
[329600703,1718494260744,-151.0,0.00015,2]
[329600704,1718494260763,-228.48802,0.00015,2]
[329600705,1718494260797,-151.0,0.00015,2]
[329600706,1718494260821,-151.0,0.00015,2]
[329600707,1718494260846,-1548.003163,0.00015,2]
[329600708,1718494260859,-1548.003163,0.00015,2]
[329600709,1718494260870,-151.0,0.00015,2]
[329600710,1718494260890,-151.0,0.00015,2]
[329600711,1718494260916,-1548.003163,0.00015,2]
[329600712,1718494260929,-1548.003163,0.00015,2]
[329600713,1718494260957,-1548.003163,0.00015,2]
[329600714,1718494260969,-8084.0,0.00015001,2]
[329600715,1718494260993,-1014.13,0.00015068,2]
[329600716,1718494261004,-405.65,0.00015068,2]
[329600717,1718494261018,-300.0,0.00015068,2]
[329600718,1718494261029,-274.65239,0.00015068,2]
[329600719,1718494261041,-6794.28339293,0.00015127,2]
[329600720,1718494261056,-1566.07728881,0.00015148,2]
[329600721,1718494261069,-355.0,0.000155,2]
[329600722,1718494261081,-559.26,0.00015559,2]
[329600723,1718494261100,-1000.0,0.000156,2]
[329600724,1718494261131,-224.0,0.000156,2]
[329600725,1718494261151,-587.0,0.00015659,2]
[329600726,1718494261182,-1014.13,0.00015753,2]
[329600727,1718494261198,-405.65,0.00015753,2]
[329600728,1718494261211,-3625.99,0.00015796,2]
[329600729,1718494261239,-167.0,0.00015831,2]
[329600730,1718494261251,-159.78,0.00015831,2]
[329600731,1718494261263,-169.26,0.00015831,2]
[329600732,1718494261277,-169.48,0.00015831,2]
[329600733,1718494261289,-274.65239,0.0001589,2]
[329600734,1718494261300,-788.78279074,0.00016064,2]
[329600735,1718494261312,-480.0,0.00016092,2]
[329600736,1718494261326,-429.90815903,0.00016153,2]
[329600737,1718494261340,-370.0,0.0001624,2]
[329600738,1718494261352,-6794.28339293,0.00016355,2]
[329600739,1718494261369,-3000.0,0.0001636,2]
[329600740,1718494261389,-1566.07728881,0.00016397,2]
[329600741,1718494261416,-163.2,0.00016438,2]
[329600742,1718494261439,-1014.13,0.00016438,2]
[329600743,1718494261457,-405.65,0.00016438,2]
[329600744,1718494261473,-1337.56,0.00016438,2]
[329600745,1718494261485,-151.0,0.00016438,2]
[329600746,1718494261509,-151.0,0.00016438,2]
[329600747,1718494261526,-151.0,0.00016438,2]
[329600748,1718494261539,-151.0,0.00016438,2]
[329600749,1718494261550,-151.0,0.00016438,2]
[329600750,1718494261569,-151.0,0.00016438,2]
[329600751,1718494261590,-151.0,0.00016438,2]
[329600752,1718494261601,-151.0,0.00016438,2]
[329600753,1718494261622,-151.0,0.00016438,2]
[329600754,1718494261636,-151.0,0.00016438,2]
[329600755,1718494261650,-151.0,0.00016438,2]
[329600756,1718494261681,-244.119516,0.00016438,2]
[329600757,1718494261696,-300.0,0.00016438,2]
[329600758,1718494261725,-520.0,0.00016466,2]
[329600759,1718494261744,-1840.49385261,0.000165,2]
[329600760,1718494261786,-179.96,0.00016712,2]
[329600761,1718494261809,-274.65239,0.00016712,2]
[329600762,1718494261834,-600.0,0.00016733,2]
[329600763,1718494261849,-249.48868912,0.000169,2]
[329600764,1718494261872,-1533.76204898,0.00017,2]
[329600765,1718494261904,-172.563341,0.00017,2]
[329600766,1718494261925,-150.0,0.000171,2]
[329600767,1718494261937,-447.0,0.000171,2]
[329600768,1718494261968,-1304.0,0.000171,2]
[329600769,1718494261993,-1505.3,0.000171,2]
[329600770,1718494262028,-3196.0,0.000171,2]
[329600771,1718494262073,-897.893,0.000171,2]
[329600772,1718494262109,-546.0,0.000171,2]
[329600773,1718494262123,-151.0,0.000171,2]
[329600774,1718494262152,-151.0,0.000171,2]
[329600775,1718494262205,-151.0,0.000171,2]
[329600776,1718494262253,-151.0,0.000171,2]
[329600777,1718494262281,-209.722558,0.000171,2]
[329600778,1718494262296,-209.722558,0.000171,2]
[329600779,1718494262322,-151.0,0.000171,2]
[329600780,1718494262332,-151.0,0.000171,2]
[329600781,1718494262349,-223.853587,0.000171,2]
[329600782,1718494262369,-153.816871,0.000171,2]
[329600783,1718494262380,-153.816871,0.000171,2]
[329600784,1718494262393,-151.0,0.000171,2]
[329600785,1718494262406,-242.170085,0.000171,2]
[329600786,1718494262432,-242.170085,0.000171,2]
[329600787,1718494262444,-179.975035,0.000171,2]
[329600788,1718494262455,-179.975035,0.000171,2]
[329600789,1718494262469,-151.0,0.000171,2]
[329600790,1718494262482,-239.425582,0.000171,2]
[329600791,1718494262495,-151.0,0.000171,2]
[329600792,1718494262511,-415.7641,0.000171,2]
[329600793,1718494262524,-415.7641,0.000171,2]
[329600794,1718494262537,-221.245418,0.000171,2]
[329600795,1718494262554,-151.0,0.000171,2]
[329600796,1718494262566,-151.0,0.000171,2]
[329600797,1718494262579,-221.245418,0.000171,2]
[329600798,1718494262590,-151.0,0.000171,2]
[329600799,1718494262601,-151.0,0.000171,2]
[329600800,1718494262624,-222.102272,0.000171,2]
[329600801,1718494262636,-154.157289,0.000171,2]
[329600802,1718494262647,-156.400157,0.000171,2]
[329600803,1718494262677,-222.102272,0.000171,2]
[329600804,1718494262708,-154.157289,0.000171,2]
[329600805,1718494262724,-156.400157,0.000171,2]
[329600806,1718494262740,-151.0,0.000171,2]
[329600807,1718494262751,-270.853308,0.000171,2]
[329600808,1718494262763,-185.923544,0.000171,2]
[329600809,1718494262778,-185.923544,0.000171,2]
[329600810,1718494262789,-150.0,0.000171,2]
[329600811,1718494262801,-5160.0,0.000171,2]
[329600812,1718494262813,-5790.0,0.000171,2]
[329600813,1718494262835,-1270.0,0.000171,2]
[329600814,1718494262852,-290.0,0.000171,2]
[329600815,1718494262866,-1199.0,0.000171,2]
[329600816,1718494262880,-37332.806,0.000171,2]
[329600817,1718494262908,-1195.0,0.000171,2]
[329600818,1718494262921,-1548.003163,0.000171,2]
[329600819,1718494262933,-823.0,0.00017173,2]
[329600820,1718494262944,-163.2,0.00017334,2]
[329600821,1718494262955,-600.0,0.0001743,2]
[329600822,1718494262988,-172.46,0.00017461,2]
[329600823,1718494263001,-274.65239,0.00017534,2]
[329600824,1718494263013,-2100.0,0.0001756,2]
[329600825,1718494263033,-300.0,0.0001756,2]
[329600826,1718494263059,-6794.28339293,0.00017582,2]
[329600827,1718494263072,-1566.07728881,0.00017645,2]
[329600828,1718494263092,-250.0,0.00017648,2]
[329600829,1718494263128,-370.0,0.000177,2]
[329600830,1718494263139,-480.0,0.00017701,2]
[329600831,1718494263151,-4212.07791507,0.00017735,2]
[329600832,1718494263180,-559.26,0.00017823,2]
[329600833,1718494263196,-1113.07456972,0.00018,2]
[329600834,1718494263391,-1159.63476392,0.00018,2]
[329600835,1718494263403,-268.28479221,0.00018,2]
[329600836,1718494263421,-520.0,0.00018113,2]
[329600837,1718494263435,-150.359,0.00018131,2]
[329600838,1718494263448,-600.0,0.00018156,2]
[329600839,1718494263486,-350.0,0.00018196,2]
[329600840,1718494263500,-163.2,0.00018229,2]
[329600841,1718494263524,-274.65239,0.00018356,2]
[329600842,1718494263536,-429.90815903,0.00018407,2]
[329600843,1718494263554,-1491.11409616,0.0001844,2]
[329600844,1718494263582,-167.0,0.00018444,2]
[329600845,1718494263596,-169.48,0.00018444,2]
[329600846,1718494263608,-3625.99,0.00018536,2]
[329600847,1718494263631,-254.07445159,0.00018744,2]
[329600848,1718494263652,-6794.28339293,0.00018809,2]
[329600849,1718494263667,-1152.0,0.00018832,2]
[329600850,1718494263690,-3000.0,0.0001886,2]
[329600851,1718494263702,-1566.07728881,0.00018894,2]
[329600852,1718494263718,-411.07916426,0.00019,2]
[329600853,1718494263734,-196.53665957,0.00019,2]
[329600854,1718494263745,-33500.0,0.00019,2]
[329600855,1718494263755,-155.69611102,0.00019,2]
[329600856,1718494263766,-151.0,0.00019,2]
[329600857,1718494263789,-151.0,0.00019,2]
[329600858,1718494263801,-151.0,0.00019,2]
[329600859,1718494263812,-151.0,0.00019,2]
[329600860,1718494263825,-209.722558,0.00019,2]
[329600861,1718494263840,-209.722558,0.00019,2]
[329600862,1718494263908,-151.0,0.00019,2]
[329600863,1718494263925,-151.0,0.00019,2]
[329600864,1718494263939,-242.170085,0.00019,2]
[329600865,1718494263958,-242.170085,0.00019,2]
[329600866,1718494263976,-179.975035,0.00019,2]
[329600867,1718494264004,-179.975035,0.00019,2]
[329600868,1718494264023,-151.0,0.00019,2]
[329600869,1718494264046,-151.0,0.00019,2]
[329600870,1718494264072,-415.7641,0.00019,2]
[329600871,1718494264105,-415.7641,0.00019,2]
[329600872,1718494264119,-221.245418,0.00019,2]
[329600873,1718494264149,-151.0,0.00019,2]
[329600874,1718494264179,-151.0,0.00019,2]
[329600875,1718494264216,-221.245418,0.00019,2]
[329600876,1718494264266,-151.0,0.00019,2]
[329600877,1718494264280,-151.0,0.00019,2]
[329600878,1718494264310,-222.102272,0.00019,2]
[329600879,1718494264347,-154.157289,0.00019,2]
[329600880,1718494264362,-156.400157,0.00019,2]
[329600881,1718494264375,-222.102272,0.00019,2]
[329600882,1718494264398,-154.157289,0.00019,2]
[329600883,1718494264439,-156.400157,0.00019,2]
[329600884,1718494264464,-151.0,0.00019,2]
[329600885,1718494264481,-185.923544,0.00019,2]
[329600886,1718494264493,-185.923544,0.00019,2]
[329600887,1718494264504,-1548.003163,0.00019,2]
[329600888,1718494264517,-163.2,0.00019125,2]
[329600889,1718494264560,-370.0,0.0001915,2]
[329600890,1718494264575,-323.69105211,0.00019178,2]
[329600891,1718494264591,-550.04295782,0.00019178,2]
[329600892,1718494264619,-500.0,0.00019178,2]
[329600893,1718494264656,-500.0,0.00019178,2]
[329600894,1718494264691,-500.0,0.00019178,2]
[329600895,1718494264718,-500.0,0.00019178,2]
[329600896,1718494264731,-500.0,0.00019178,2]
[329600897,1718494264747,-500.0,0.00019178,2]
[329600898,1718494264759,-500.0,0.00019178,2]
[329600899,1718494264795,-500.0,0.00019178,2]
[329600900,1718494264811,-500.0,0.00019178,2]
[329600901,1718494264836,-500.0,0.00019178,2]
[329600902,1718494264852,-500.0,0.00019178,2]
[329600903,1718494264879,-500.0,0.00019178,2]
[329600904,1718494264892,-500.0,0.00019178,2]
[329600905,1718494264935,-500.0,0.00019178,2]
[329600906,1718494264948,-500.0,0.00019178,2]
[329600907,1718494264960,-500.0,0.00019178,2]
[329600908,1718494264971,-500.0,0.00019178,2]
[329600909,1718494265004,-500.0,0.00019178,2]
[329600910,1718494265020,-500.0,0.00019178,2]
[329600911,1718494265036,-500.0,0.00019178,2]
[329600912,1718494265068,-500.0,0.00019178,2]
[329600913,1718494265094,-500.0,0.00019178,2]
[329600914,1718494265114,-500.0,0.00019178,2]
[329600915,1718494265133,-500.0,0.00019178,2]
[329600916,1718494265148,-500.0,0.00019178,2]
[329600917,1718494265162,-500.0,0.00019178,2]
[329600918,1718494265180,-500.0,0.00019178,2]
[329600919,1718494265191,-500.0,0.00019178,2]
[329600920,1718494265220,-500.0,0.00019178,2]
[329600921,1718494265232,-500.0,0.00019178,2]
[329600922,1718494265244,-500.0,0.00019178,2]
[329600923,1718494265255,-500.0,0.00019178,2]
[329600924,1718494265268,-500.0,0.00019178,2]
[329600925,1718494265302,-500.0,0.00019178,2]
[329600926,1718494265313,-500.0,0.00019178,2]
[329600927,1718494265328,-500.0,0.00019178,2]
[329600928,1718494265338,-500.0,0.00019178,2]
[329600929,1718494265349,-500.0,0.00019178,2]
[329600930,1718494265360,-500.0,0.00019178,2]
[329600931,1718494265371,-500.0,0.00019178,2]
[329600932,1718494265386,-500.0,0.00019178,2]
[329600933,1718494265398,-500.0,0.00019178,2]
[329600934,1718494265410,-500.0,0.00019178,2]
[329600935,1718494265429,-500.0,0.00019178,2]
[329600936,1718494265446,-500.0,0.00019178,2]
[329600937,1718494265458,-500.0,0.00019178,2]
[329600938,1718494265481,-500.0,0.00019178,2]
[329600939,1718494265509,-500.0,0.00019178,2]
[329600940,1718494265520,-500.0,0.00019178,2]
[329600941,1718494265535,-500.0,0.00019178,2]
[329600942,1718494265552,-500.0,0.00019178,2]
[329600943,1718494265564,-500.0,0.00019178,2]
[329600944,1718494265589,-500.0,0.00019178,2]
[329600945,1718494265618,-395.50407357,0.00019178,2]
[329600946,1718494265652,-500.0,0.00019178,2]
[329600947,1718494265674,-500.0,0.00019178,2]
[329600948,1718494265688,-500.0,0.00019178,2]
[329600949,1718494265702,-500.0,0.00019178,2]
[329600950,1718494265716,-500.0,0.00019178,2]
[329600951,1718494265729,-500.0,0.00019178,2]
[329600952,1718494265743,-500.0,0.00019178,2]
[329600953,1718494265757,-500.0,0.00019178,2]
[329600954,1718494265769,-500.0,0.00019178,2]
[329600955,1718494265780,-300.0,0.00019178,2]
[329600956,1718494265791,-500.0,0.00019178,2]
[329600957,1718494265803,-500.0,0.00019178,2]
[329600958,1718494265814,-500.0,0.00019178,2]
[329600959,1718494265825,-500.0,0.00019178,2]
[329600960,1718494265844,-500.0,0.00019178,2]
[329600961,1718494265855,-410.15853072,0.00019178,2]
[329600962,1718494265866,-408.85108422,0.00019178,2]
[329600963,1718494265891,-500.0,0.00019178,2]
[329600964,1718494265908,-294.08734587,0.00019178,2]
[329600965,1718494265939,-206.42446769,0.00019178,2]
[329600966,1718494265955,-490.0,0.00019178,2]
[329600967,1718494265969,-500.0,0.00019178,2]
[329600968,1718494265984,-500.0,0.00019178,2]
[329600969,1718494266009,-225.34038891,0.00019178,2]
[329600970,1718494266022,-414.62948811,0.00019178,2]
[329600971,1718494266052,-500.0,0.00019178,2]
[329600972,1718494266064,-500.0,0.00019178,2]
[329600973,1718494266074,-500.0,0.00019178,2]
[329600974,1718494266086,-504.46323567,0.00019178,2]
[329600975,1718494266097,-366.6085813,0.00019178,2]
[329600976,1718494266109,-500.0,0.00019178,2]
[329600977,1718494266119,-500.0,0.00019178,2]
[329600978,1718494266131,-500.0,0.00019178,2]
[329600979,1718494266176,-418.79539966,0.00019178,2]
[329600980,1718494266188,-500.0,0.00019178,2]
[329600981,1718494266199,-500.0,0.00019178,2]
[329600982,1718494266220,-455.94429013,0.00019178,2]
[329600983,1718494266234,-500.0,0.00019178,2]
[329600984,1718494266252,-575.255447,0.00019178,2]
[329600985,1718494266265,-500.0,0.00019178,2]
[329600986,1718494266284,-500.0,0.00019178,2]
[329600987,1718494266294,-500.0,0.00019178,2]
[329600988,1718494266316,-500.0,0.00019178,2]
[329600989,1718494266364,-500.0,0.00019178,2]
[329600990,1718494266388,-500.0,0.00019178,2]
[329600991,1718494266401,-154.06007968,0.00019178,2]
[329600992,1718494266422,-500.0,0.00019178,2]
[329600993,1718494266435,-500.0,0.00019178,2]
[329600994,1718494266446,-500.0,0.00019178,2]
[329600995,1718494266466,-500.0,0.00019178,2]
[329600996,1718494266486,-500.0,0.00019178,2]
[329600997,1718494266504,-500.0,0.00019178,2]
[329600998,1718494266514,-500.0,0.00019178,2]
[329600999,1718494266524,-172.82504125,0.00019178,2]
[329601000,1718494266535,-500.0,0.00019178,2]
[329601001,1718494266545,-500.0,0.00019178,2]
[329601002,1718494266563,-500.0,0.00019178,2]
[329601003,1718494266575,-500.0,0.00019178,2]
[329601004,1718494266591,-500.0,0.00019178,2]
[329601005,1718494266612,-500.0,0.00019178,2]
[329601006,1718494266623,-500.0,0.00019178,2]
[329601007,1718494266649,-500.0,0.00019178,2]
[329601008,1718494266666,-344.88007404,0.00019178,2]
[329601009,1718494266686,-500.0,0.00019178,2]
[329601010,1718494266697,-325.01175293,0.00019178,2]
[329601011,1718494266708,-500.0,0.00019178,2]
[329601012,1718494266721,-535.77,0.00019178,2]
[329601013,1718494266732,-500.0,0.00019178,2]
[329601014,1718494266743,-216.33917626,0.00019178,2]
[329601015,1718494266775,-232.53046765,0.00019178,2]
[329601016,1718494266786,-497.27045491,0.00019178,2]
[329601017,1718494266798,-500.0,0.00019178,2]
[329601018,1718494266824,-350.00000001,0.00019178,2]
[329601019,1718494266846,-500.0,0.00019178,2]
[329601020,1718494266863,-500.0,0.00019178,2]
[329601021,1718494266874,-500.0,0.00019178,2]
[329601022,1718494266904,-332.37992371,0.00019178,2]
[329601023,1718494266915,-500.0,0.00019178,2]
[329601024,1718494266927,-500.0,0.00019178,2]
[329601025,1718494266937,-500.0,0.00019178,2]
[329601026,1718494266948,-500.0,0.00019178,2]
[329601027,1718494266964,-442.59180233,0.00019178,2]
[329601028,1718494266984,-500.0,0.00019178,2]
[329601029,1718494267007,-500.0,0.00019178,2]
[329601030,1718494267019,-500.0,0.00019178,2]
[329601031,1718494267031,-568.03585514,0.00019178,2]
[329601032,1718494267055,-500.0,0.00019178,2]
[329601033,1718494267067,-616.45780735,0.00019178,2]
[329601034,1718494267081,-156.17522039,0.00019178,2]
[329601035,1718494267092,-500.0,0.00019178,2]
[329601036,1718494267116,-330.64615708,0.00019178,2]
[329601037,1718494267126,-151.0,0.00019178,2]
[329601038,1718494267137,-153.816871,0.00019178,2]
[329601039,1718494267148,-153.816871,0.00019178,2]
[329601040,1718494267162,-240.73,0.00019178,2]
[329601041,1718494267181,-274.65239,0.00019178,2]
[329601042,1718494267191,-5000.0,0.00019209,2]
[329601043,1718494267212,-5000.0,0.00019209,2]
[329601044,1718494267232,-174.42184083,0.000193,2]
[329601045,1718494267252,-480.0,0.0001931,2]
[329601046,1718494267267,-2816.62132599,0.00019318,2]
[329601047,1718494267294,-209.722558,0.00019339,2]
[329601048,1718494267310,-209.722558,0.00019339,2]
[329601049,1718494267322,-151.0,0.00019339,2]
[329601050,1718494267348,-172.066828,0.00019339,2]
[329601051,1718494267362,-242.170085,0.00019339,2]
[329601052,1718494267379,-242.170085,0.00019339,2]
[329601053,1718494267391,-179.975035,0.00019339,2]
[329601054,1718494267424,-179.975035,0.00019339,2]
[329601055,1718494267436,-151.0,0.00019339,2]
[329601056,1718494267469,-151.0,0.00019339,2]
[329601057,1718494267483,-415.7641,0.00019339,2]
[329601058,1718494267508,-415.7641,0.00019339,2]
[329601059,1718494267520,-221.245418,0.00019339,2]
[329601060,1718494267534,-248.686917,0.00019339,2]
[329601061,1718494267552,-151.0,0.00019339,2]
[329601062,1718494267590,-221.245418,0.00019339,2]
[329601063,1718494267605,-151.0,0.00019339,2]
[329601064,1718494267616,-151.0,0.00019339,2]
[329601065,1718494267626,-222.102272,0.00019339,2]
[329601066,1718494267637,-154.157289,0.00019339,2]
[329601067,1718494267655,-156.400157,0.00019339,2]
[329601068,1718494267669,-222.102272,0.00019339,2]
[329601069,1718494267682,-154.157289,0.00019339,2]
[329601070,1718494267698,-156.400157,0.00019339,2]
[329601071,1718494267718,-151.0,0.00019339,2]
[329601072,1718494267731,-185.923544,0.00019339,2]
[329601073,1718494267767,-185.923546,0.00019339,2]
[329601074,1718494267784,-1548.003163,0.00019339,2]
[329601075,1718494267796,-3369.69,0.00019339,2]
[329601076,1718494267809,-19970.24,0.00019339,2]
[329601077,1718494267823,-1722.79027539,0.00019343,2]
[329601078,1718494267847,-210.86070928,0.00019343,2]
[329601079,1718494267860,-153.42,0.0001956,15]
[329601080,1718494267878,-813.0,0.0001956,15]
[329601081,1718494267916,-163.0,0.0001956,15]
[329601082,1718494267928,-150.5,0.0001956,15]
[329601083,1718494267952,-150.5,0.0001957,15]
[329601084,1718494267965,-813.0,0.0001957,15]
[329601085,1718494267985,-2011.0,0.0001957,15]
[329601086,1718494267997,-163.0,0.0001957,15]
[329601087,1718494268027,-155.31,0.0001958,15]
[329601088,1718494268055,-156.78,0.0001958,15]
[329601089,1718494268071,-150.5,0.0001958,15]
[329601090,1718494268091,-813.0,0.0001958,15]
[329601091,1718494268144,-2011.0,0.0001958,15]
[329601092,1718494268179,-163.0,0.0001958,15]
[329601093,1718494268217,-2011.0,0.0001959,15]
[329601094,1718494268229,-151.0,0.0001959,2]
[329601095,1718494268240,-151.0,0.0001959,2]
[329601096,1718494268260,-151.0,0.0001959,2]